lending/lending_fUSD_20250131
["ID","MTS","AMOUNT","RATE_DAILY","PERIOD"]
[351138376,1738348289957,-522.94,0.00019724,2]
[351138377,1738348289966,-691.72,0.00019724,2]
[351138378,1738348289976,-694.08,0.00019724,2]
[351138379,1738348289986,-500.0,0.00019724,2]
[351138380,1738348289997,-500.0,0.00019724,2]
[351138381,1738348290007,-622.01,0.00019724,2]
[351138382,1738348290017,-470.88701175,0.00019724,2]
[351138383,1738348290027,-500.0,0.00019724,2]
[351138384,1738348290036,-799.89,0.00019724,2]
[351138385,1738348290046,-666.3,0.00019724,2]
[351138386,1738348290055,-536.21,0.00019724,2]
[351138387,1738348290064,-872.1,0.00019724,2]
[351138388,1738348290073,-1030.96,0.00019724,2]
[351138389,1738348290083,-544.21,0.00019724,2]
[351138390,1738348290092,-4715.16,0.00019724,2]
[351138391,1738348290102,-993.3,0.00019724,2]
[351138392,1738348290111,-2605.9,0.00019724,2]
[351138393,1738348290121,-4721.91,0.00019724,2]
[351138394,1738348290130,-2283.47,0.00019724,2]
[351138395,1738348290139,-939.45,0.00019724,2]
[351138396,1738348290149,-2389.08,0.00019724,2]
[351138397,1738348290158,-965.04,0.00019724,2]
[351138398,1738348290167,-557.93,0.00019724,2]
[351138399,1738348290177,-2395.63,0.00019724,2]
[351138400,1738348290186,-1060.87,0.00019724,2]
[351138401,1738348290197,-1276.49,0.00019724,2]
[351138402,1738348290207,-500.0,0.00019724,2]
[351138403,1738348290216,-973.6,0.00019724,2]
[351138404,1738348290225,-870.13,0.00019724,2]
[351138405,1738348290234,-1177.58,0.00019724,2]
[351138406,1738348290243,-150.0,0.00019725,2]
[351138407,1738348290252,-510.61,0.00019725,2]
[351138408,1738348290261,-500.0,0.00019725,2]
[351138409,1738348290270,-500.0,0.00019726,7]
[351138410,1738348290279,-152.0,0.0001974,6]
[351138411,1738348290288,-500.0,0.00019745,2]
[351138412,1738348290297,-150.0,0.0001978,4]
[351138413,1738348290307,-150.0,0.0001978,4]
[351138414,1738348290318,-150.0,0.00019784,4]
[351138415,1738348290327,-150.0,0.00019837,4]
[351138416,1738348290337,-3000.0,0.0001984,2]
[351138417,1738348290346,-150.0,0.00019841,4]
[351138418,1738348290356,-500.0,0.00019845,2]
[351138419,1738348290365,-500.0,0.00019859,2]
[351138420,1738348290374,-786.06,0.00019859,2]
[351138421,1738348290383,-744.03,0.00019859,2]
[351138422,1738348290392,-1041.45,0.00019859,2]
[351138423,1738348290402,-679.36,0.00019859,2]
[351138424,1738348290411,-500.0,0.00019859,2]
[351138425,1738348290421,-639.49,0.00019859,2]
[351138426,1738348290430,-983.34,0.00019859,2]
[351138427,1738348290440,-853.27,0.00019859,2]
[351138428,1738348290452,-2290.49,0.00019859,2]
[351138429,1738348290461,-15748.87,0.00019859,2]
[351138430,1738348290471,-1756.23,0.00019859,2]
[351138431,1738348290480,-5804.66,0.00019859,2]
[351138432,1738348290489,-1011.15,0.00019859,2]
[351138433,1738348290499,-1398.05,0.00019859,2]
[351138434,1738348290509,-706.26,0.00019859,2]
[351138435,1738348290523,-1396.62,0.00019859,2]
[351138436,1738348290533,-1348.69,0.00019859,2]
[351138437,1738348290542,-1491.37,0.00019859,2]
[351138438,1738348290552,-500.0,0.0001986,2]
[351138439,1738348290563,-500.0,0.0001986,2]
[351138440,1738348290572,-592.09,0.0001986,2]
[351138441,1738348290581,-541.54,0.0001986,2]
[351138442,1738348290592,-661.57,0.0001986,2]
[351138443,1738348290602,-568.28,0.0001986,2]
[351138444,1738348290612,-517.91,0.0001986,2]
[351138445,1738348290621,-218.72869276,0.0001986,2]
[351138446,1738348290631,-573.54,0.0001986,2]
[351138447,1738348290641,-730.37,0.0001986,2]
[351138448,1738348290651,-536.25,0.0001986,2]
[351138449,1738348290660,-978.34,0.0001986,2]
[351138450,1738348290669,-519.92,0.0001986,2]
[351138451,1738348290679,-932.35,0.0001986,2]
[351138452,1738348290688,-1577.73,0.0001986,2]
[351138453,1738348290701,-647.42,0.0001986,2]
[351138454,1738348290710,-286.106421,0.0001986,2]
[351138455,1738348290720,-551.45,0.0001986,2]
[351138456,1738348290729,-2652.51,0.0001986,2]
[351138457,1738348290738,-616.52,0.0001986,2]
[351138458,1738348290747,-611.99,0.0001986,2]
[351138459,1738348290756,-1917.23,0.0001986,2]
[351138460,1738348290765,-1010.98,0.0001986,2]
[351138461,1738348290775,-345.181563,0.0001986,2]
[351138462,1738348290784,-957.27,0.0001986,2]
[351138463,1738348290793,-1127.11,0.0001986,2]
[351138464,1738348290803,-1746.14,0.0001986,2]
[351138465,1738348290813,-683.39,0.0001986,2]
[351138466,1738348290821,-834.53,0.0001986,2]
[351138467,1738348290831,-3304.95,0.0001986,2]
[351138468,1738348290840,-1375.96,0.0001986,2]
[351138469,1738348290850,-1152.1,0.0001986,2]
[351138470,1738348290859,-151.742883,0.0001986,2]
[351138471,1738348290868,-637.73,0.0001986,2]
[351138472,1738348290878,-861.45,0.0001986,2]
[351138473,1738348290888,-1174.79,0.0001986,2]
[351138474,1738348290897,-5050.15,0.0001986,2]
[351138475,1738348290907,-1552.68,0.0001986,2]
[351138476,1738348290917,-1714.15,0.0001986,2]
[351138477,1738348290926,-970.54,0.0001986,2]
[351138478,1738348290936,-974.2,0.0001986,2]
[351138479,1738348290948,-2977.2,0.0001986,2]
[351138480,1738348290958,-2472.78,0.0001986,2]
[351138481,1738348290967,-2130.65,0.0001986,2]
[351138482,1738348290976,-2310.79,0.0001986,2]
[351138483,1738348290985,-3082.33,0.0001986,2]
[351138484,1738348290994,-1236.46,0.0001986,2]
[351138485,1738348291007,-518.40851431,0.0001986,2]
[351138486,1738348291053,-1531.95,0.0001986,2]
[351138487,1738348291062,-1897.38,0.0001986,2]
[351138488,1738348291071,-4150.61,0.0001986,2]
[351138489,1738348291080,-4363.87,0.0001986,2]
[351138490,1738348291091,-166.309678,0.0001986,2]
[351138491,1738348291101,-500.0,0.0001986,2]
[351138492,1738348291110,-151.74288,0.0001986,2]
[351138493,1738348291120,-977.31,0.0001986,2]
[351138494,1738348291129,-755.3,0.0001986,2]
[351138495,1738348291141,-1593.71,0.0001986,2]
[351138496,1738348291150,-772.66,0.00019861,2]
[351138497,1738348291161,-606.93,0.00019861,2]
[351138498,1738348291170,-522.94,0.00019861,2]
[351138499,1738348291179,-691.72,0.00019861,2]
[351138500,1738348291187,-694.08,0.00019861,2]
[351138501,1738348291199,-500.0,0.00019861,2]
[351138502,1738348291208,-500.0,0.00019861,2]
[351138503,1738348291217,-622.01,0.00019861,2]
[351138504,1738348291226,-500.0,0.00019861,2]
[351138505,1738348291234,-799.89,0.00019861,2]
[351138506,1738348291244,-666.3,0.00019861,2]
[351138507,1738348291253,-536.21,0.00019861,2]
[351138508,1738348291262,-872.1,0.00019861,2]
[351138509,1738348291271,-1030.96,0.00019861,2]
[351138510,1738348291281,-544.21,0.00019861,2]
[351138511,1738348291290,-4715.16,0.00019861,2]
[351138512,1738348291299,-993.3,0.00019861,2]
[351138513,1738348291309,-2605.9,0.00019861,2]
[351138514,1738348291318,-4721.91,0.00019861,2]
[351138515,1738348291327,-2283.47,0.00019861,2]
[351138516,1738348291336,-939.45,0.00019861,2]
[351138517,1738348291346,-2389.08,0.00019861,2]
[351138518,1738348291355,-965.04,0.00019861,2]
[351138519,1738348291364,-557.93,0.00019861,2]
[351138520,1738348291374,-2395.63,0.00019861,2]
[351138521,1738348291383,-1060.87,0.00019861,2]
[351138522,1738348291392,-1276.49,0.00019861,2]
[351138523,1738348291401,-226.08394042,0.00019861,2]
[351138524,1738348291410,-973.6,0.00019861,2]
[351138525,1738348291419,-870.13,0.00019861,2]
[351138526,1738348291428,-1177.58,0.00019861,2]
[351138527,1738348291437,-510.61,0.00019862,2]
[351138528,1738348291448,-648.9290644,0.00019862,2]
[351138529,1738348291458,-524.45,0.00019863,7]
[351138530,1738348291467,-3907.0,0.00019866,2]
[351138531,1738348291475,-150.0,0.00019866,2]
[351138532,1738348291484,-639.0,0.00019866,2]
[351138533,1738348291493,-1864.0,0.00019866,2]
[351138534,1738348291507,-300.0,0.0001987,2]
[351138535,1738348291517,-400.0,0.0001987,2]
[351138536,1738348291526,-74857.61210492,0.00019876,2]
[351138537,1738348291535,-150.0,0.00019893,4]
[351138538,1738348291545,-300.0,0.00019899,2]
[351138539,1738348291554,-4693.89000933,0.000199,3]
[351138540,1738348291563,-231680.73136701,0.000199,7]
[351138541,1738348291572,-11984.43043144,0.000199,2]
[351138542,1738348291581,-151.0,0.000199,2]
[351138543,1738348291592,-151.0,0.000199,2]
[351138544,1738348291602,-151.0,0.000199,2]
[351138545,1738348291611,-151.0,0.000199,2]
[351138546,1738348291620,-863.99469811,0.000199,2]
[351138547,1738348291629,-150.54,0.00019916,2]
[351138548,1738348291639,-500.0,0.00019945,2]
[351138549,1738348291648,-150.0,0.0001995,4]
[351138550,1738348291658,-150.0,0.00019961,4]
[351138551,1738348291667,-150.0,0.00019963,4]
[351138552,1738348291677,-207.0,0.0001999,2]
[351138553,1738348291686,-212.0,0.0001999,2]
[351138554,1738348291696,-210.0,0.0001999,2]
[351138555,1738348291705,-205.0,0.0001999,2]
[351138556,1738348291714,-209.0,0.0001999,2]
[351138557,1738348291723,-564.76,0.00019996,2]
[351138558,1738348291732,-786.06,0.00019996,2]
[351138559,1738348291742,-744.03,0.00019996,2]
[351138560,1738348291751,-1041.45,0.00019996,2]
[351138561,1738348291759,-679.36,0.00019996,2]
[351138562,1738348291769,-640.37718893,0.00019996,2]
[351138563,1738348291778,-639.49,0.00019996,2]
[351138564,1738348291787,-983.34,0.00019996,2]
[351138565,1738348291796,-853.27,0.00019996,2]
[351138566,1738348291805,-2290.49,0.00019996,2]
[351138567,1738348291814,-15748.87,0.00019996,2]
[351138568,1738348291823,-1756.23,0.00019996,2]
[351138569,1738348291832,-5804.66,0.00019996,2]
[351138570,1738348291841,-1011.15,0.00019996,2]
[351138571,1738348291850,-1398.05,0.00019996,2]
[351138572,1738348291859,-706.26,0.00019996,2]
[351138573,1738348291869,-1396.62,0.00019996,2]
[351138574,1738348291878,-1348.69,0.00019996,2]
[351138575,1738348291887,-1491.37,0.00019996,2]
[351138576,1738348291896,-265.19259078,0.00019997,2]
[351138577,1738348291906,-172.08493209,0.00019997,2]
[351138578,1738348291915,-592.09,0.00019997,2]
[351138579,1738348291924,-541.54,0.00019997,2]
[351138580,1738348291934,-661.57,0.00019997,2]
[351138581,1738348291946,-568.28,0.00019997,2]
[351138582,1738348291955,-517.91,0.00019997,2]
[351138583,1738348291964,-573.54,0.00019997,2]
[351138584,1738348291973,-730.37,0.00019997,2]
[351138585,1738348291983,-536.25,0.00019997,2]
[351138586,1738348291993,-978.34,0.00019997,2]
[351138587,1738348292002,-519.92,0.00019997,2]
[351138588,1738348292011,-932.35,0.00019997,2]
[351138589,1738348292021,-1577.73,0.00019997,2]
[351138590,1738348292030,-647.42,0.00019997,2]
[351138591,1738348292039,-286.106421,0.00019997,2]
[351138592,1738348292048,-551.45,0.00019997,2]
[351138593,1738348292058,-2652.51,0.00019997,2]
[351138594,1738348292067,-616.52,0.00019997,2]
[351138595,1738348292077,-611.99,0.00019997,2]
[351138596,1738348292088,-1917.23,0.00019997,2]
[351138597,1738348292097,-1010.98,0.00019997,2]
[351138598,1738348292106,-345.181563,0.00019997,2]
[351138599,1738348292116,-957.27,0.00019997,2]
[351138600,1738348292125,-1746.14,0.00019997,2]
[351138601,1738348292134,-1127.11,0.00019997,2]
[351138602,1738348292143,-683.39,0.00019997,2]
[351138603,1738348292152,-834.53,0.00019997,2]
[351138604,1738348292161,-3304.95,0.00019997,2]
[351138605,1738348292171,-162.579987,0.00019997,2]
[351138606,1738348292180,-1375.96,0.00019997,2]
[351138607,1738348292189,-1152.1,0.00019997,2]
[351138608,1738348292201,-637.73,0.00019997,2]
[351138609,1738348292210,-861.45,0.00019997,2]
[351138610,1738348292219,-1174.79,0.00019997,2]
[351138611,1738348292229,-5050.15,0.00019997,2]
[351138612,1738348292237,-1552.68,0.00019997,2]
[351138613,1738348292248,-1714.15,0.00019997,2]
[351138614,1738348292258,-970.54,0.00019997,2]
[351138615,1738348292267,-974.2,0.00019997,2]
[351138616,1738348292276,-2977.2,0.00019997,2]
[351138617,1738348292285,-2472.78,0.00019997,2]
[351138618,1738348292295,-164.88144,0.00019997,2]
[351138619,1738348292304,-2130.65,0.00019997,2]
[351138620,1738348292313,-2310.79,0.00019997,2]
[351138621,1738348292322,-3082.33,0.00019997,2]
[351138622,1738348292331,-159.421069,0.00019997,2]
[351138623,1738348292341,-1236.46,0.00019997,2]
[351138624,1738348292350,-1531.95,0.00019997,2]
[351138625,1738348292359,-1897.38,0.00019997,2]
[351138626,1738348292368,-4150.61,0.00019997,2]
[351138627,1738348292379,-4363.87,0.00019997,2]
[351138628,1738348292388,-500.0,0.00019997,2]
[351138629,1738348292398,-977.31,0.00019997,2]
[351138630,1738348292407,-755.3,0.00019997,2]
[351138631,1738348292416,-1593.71,0.00019997,2]
[351138632,1738348292425,-772.66,0.00019998,2]
[351138633,1738348292435,-606.93,0.00019998,2]
[351138634,1738348292446,-522.94,0.00019998,2]
[351138635,1738348292455,-691.72,0.00019998,2]
[351138636,1738348292464,-694.08,0.00019998,2]
[351138637,1738348292474,-500.0,0.00019998,2]
[351138638,1738348292484,-500.0,0.00019998,2]
[351138639,1738348292493,-622.01,0.00019998,2]
[351138640,1738348292503,-500.0,0.00019998,2]
[351138641,1738348292517,-799.89,0.00019998,2]
[351138642,1738348292526,-666.3,0.00019998,2]
[351138643,1738348292536,-536.21,0.00019998,2]
[351138644,1738348292545,-872.1,0.00019998,2]
[351138645,1738348292556,-1030.96,0.00019998,2]
[351138646,1738348292566,-544.21,0.00019998,2]
[351138647,1738348292576,-4715.16,0.00019998,2]
[351138648,1738348292586,-993.3,0.00019998,2]
[351138649,1738348292596,-2605.9,0.00019998,2]
[351138650,1738348292606,-4721.91,0.00019998,2]
[351138651,1738348292616,-2283.47,0.00019998,2]
[351138652,1738348292627,-939.45,0.00019998,2]
[351138653,1738348292636,-2389.08,0.00019998,2]
[351138654,1738348292646,-965.04,0.00019998,2]
[351138655,1738348292656,-557.93,0.00019998,2]
[351138656,1738348292665,-2395.63,0.00019998,2]
[351138657,1738348292675,-1060.87,0.00019998,2]
[351138658,1738348292685,-1276.49,0.00019998,2]
[351138659,1738348292697,-973.6,0.00019998,2]
[351138660,1738348292706,-870.13,0.00019998,2]
[351138661,1738348292716,-1177.58,0.00019998,2]
[351138662,1738348292725,-2000.0,0.00019999,5]
[351138663,1738348292735,-510.61,0.00019999,2]
[351138664,1738348292744,-31189.68464057,0.0002,5]
[351138665,1738348292754,-2110.0,0.0002,2]
[351138666,1738348292763,-6179.18377189,0.0002,2]
[351138667,1738348292772,-6092.73496245,0.0002,2]
[351138668,1738348292781,-1013.0,0.0002,6]
[351138669,1738348292791,-1067.19029165,0.0002,7]
[351138670,1738348292800,-6600.54737348,0.0002,5]
[351138671,1738348292809,-10004.85972354,0.0002,10]
[351138672,1738348292818,-50000.0,0.0002,2]
[351138673,1738348292827,-68044.53535789,0.0002,10]
[351138674,1738348292837,-1211.0,0.0002,2]
[351138675,1738348292846,-300.0,0.0002,2]
[351138676,1738348292856,-300.0,0.0002,2]
[351138677,1738348292865,-300.0,0.0002,2]
[351138678,1738348292874,-300.0,0.0002,2]
[351138679,1738348292884,-530.70336762,0.0002,2]
[351138680,1738348292893,-42675.67626674,0.0002,2]
[351138681,1738348292903,-3950.0,0.0002,2]
[351138682,1738348292913,-3710.88456167,0.0002,2]
[351138683,1738348292923,-1239.87026504,0.0002,2]
[351138684,1738348292933,-11727.16971293,0.0002,2]
[351138685,1738348292943,-1000.36580792,0.0002,2]
[351138686,1738348292954,-2149.52902285,0.0002,2]
[351138687,1738348292963,-5000.0,0.0002,3]
[351138688,1738348292972,-1231.82,0.0002,5]
[351138689,1738348292981,-2000.0,0.0002,6]
[351138690,1738348292990,-907.09638043,0.0002,3]
[351138691,1738348292999,-60455.89906337,0.0002,2]
[351138692,1738348293008,-600.0,0.0002,3]
[351138693,1738348293018,-904.8337,0.0002,2]
[351138694,1738348293027,-30924.50825602,0.0002,4]
[351138695,1738348293037,-479444.78378912,0.0002,2]
[351138696,1738348293047,-17762.93619339,0.0002,2]
[351138697,1738348293056,-4702.0,0.0002,10]
[351138698,1738348293066,-2000.0,0.0002,2]
[351138699,1738348293076,-2000.0,0.0002,2]
[351138700,1738348293087,-2000.0,0.0002,2]
[351138701,1738348293097,-2000.0,0.0002,2]
[351138702,1738348293107,-60079.67813989,0.0002,2]
[351138703,1738348293117,-2000.0,0.0002,2]
[351138704,1738348293127,-315.71,0.0002,2]
[351138705,1738348293137,-151.0,0.0002,2]
[351138706,1738348293146,-151.0,0.0002,2]
[351138707,1738348293156,-151.0,0.0002,2]
[351138708,1738348293166,-151.0,0.0002,2]
[351138709,1738348293176,-151.0,0.0002,2]
[351138710,1738348293186,-151.0,0.0002,2]
[351138711,1738348293196,-151.0,0.0002,2]
[351138712,1738348293206,-151.0,0.0002,2]
[351138713,1738348293216,-664.5,0.0002,2]
[351138714,1738348293226,-184.9,0.0002,2]
[351138715,1738348293235,-184.9,0.0002,2]
[351138716,1738348293245,-151.0,0.0002,2]
[351138717,1738348293254,-151.0,0.0002,2]
[351138718,1738348293263,-151.0,0.0002,2]
[351138719,1738348293272,-151.0,0.0002,2]
[351138720,1738348293282,-151.0,0.0002,2]
[351138721,1738348293291,-151.0,0.0002,2]
[351138722,1738348293300,-151.0,0.0002,2]
[351138723,1738348293310,-151.0,0.0002,2]
[351138724,1738348293319,-151.0,0.0002,2]
[351138725,1738348293330,-151.0,0.0002,2]
[351138726,1738348293339,-238.408928,0.0002,2]
[351138727,1738348293349,-2000.0,0.0002,2]
[351138728,1738348293358,-151.0,0.0002,2]
[351138729,1738348293367,-151.0,0.0002,2]
[351138730,1738348293377,-151.0,0.0002,2]
[351138731,1738348293386,-151.0,0.0002,2]
[351138732,1738348293396,-151.0,0.0002,2]
[351138733,1738348293406,-151.0,0.0002,2]
[351138734,1738348293415,-151.0,0.0002,2]
[351138735,1738348293424,-151.0,0.0002,2]
[351138736,1738348293434,-151.0,0.0002,2]
[351138737,1738348293443,-151.0,0.0002,2]
[351138738,1738348293456,-151.0,0.0002,2]
[351138739,1738348293465,-151.0,0.0002,2]
[351138740,1738348293475,-151.0,0.0002,2]
[351138741,1738348293485,-267.567983,0.0002,2]
[351138742,1738348293494,-152.774738,0.0002,2]
[351138743,1738348293507,-267.567983,0.0002,2]
[351138744,1738348293517,-151.0,0.0002,2]
[351138745,1738348293527,-151.720312,0.0002,2]
[351138746,1738348293537,-151.0,0.0002,2]
[351138747,1738348293547,-536.277525,0.0002,2]
[351138748,1738348293556,-536.277525,0.0002,2]
[351138749,1738348293566,-151.0,0.0002,2]
[351138750,1738348293575,-151.0,0.0002,2]
[351138751,1738348293585,-151.0,0.0002,2]
[351138752,1738348293595,-151.0,0.0002,2]
[351138753,1738348293605,-291.433618,0.0002,2]
[351138754,1738348293614,-151.0,0.0002,2]
[351138755,1738348293623,-151.0,0.0002,2]
[351138756,1738348293632,-151.0,0.0002,2]
[351138757,1738348293642,-672.567098,0.0002,2]
[351138758,1738348293652,-672.567098,0.0002,2]
[351138759,1738348293661,-159.0,0.0002,2]
[351138760,1738348293671,-151.0,0.0002,2]
[351138761,1738348293680,-151.0,0.0002,2]
[351138762,1738348293689,-809.512431,0.0002,2]
[351138763,1738348293702,-809.512431,0.0002,2]
[351138764,1738348293711,-151.0,0.0002,2]
[351138765,1738348293722,-225.920993,0.0002,2]
[351138766,1738348293731,-205.78735079,0.0002,2]
[351138767,1738348293741,-151.0,0.0002,2]
[351138768,1738348293751,-402.43383823,0.0002,2]
[351138769,1738348293762,-241.46030294,0.0002,2]
[351138770,1738348293771,-160.97353529,0.0002,2]
[351138771,1738348293780,-151.0,0.0002,2]
[351138772,1738348293790,-246.225,0.0002,2]
[351138773,1738348293799,-246.225,0.0002,2]
[351138774,1738348293808,-261.052362,0.0002,2]
[351138775,1738348293818,-151.0,0.0002,2]
[351138776,1738348293827,-1117.297616,0.0002,2]
[351138777,1738348293837,-151.0,0.0002,2]
[351138778,1738348293847,-12500.0,0.0002,2]
[351138779,1738348293856,-1117.297616,0.0002,2]
[351138780,1738348293865,-151.0,0.0002,2]
[351138781,1738348293875,-673.35,0.0002,2]
[351138782,1738348293884,-162.730615,0.0002,2]
[351138783,1738348293894,-162.730615,0.0002,2]
[351138784,1738348293903,-1000.0,0.0002,2]
[351138785,1738348293913,-151.0,0.0002,2]
[351138786,1738348293923,-960.12,0.0002,2]
[351138787,1738348293932,-150.0,0.00020006,4]
[351138788,1738348293942,-2000.0,0.0002001,2]
[351138789,1738348293955,-3821.591475,0.0002002,2]
[351138790,1738348293967,-743.37,0.0002004,2]
[351138791,1738348293977,-500.0,0.00020045,2]
[351138792,1738348293987,-150.0,0.00020063,4]
[351138793,1738348293997,-150.0,0.00020082,4]
[351138794,1738348294007,-329.26,0.00020089,2]
[351138795,1738348294017,-700.48,0.00020107,2]
[351138796,1738348294027,-758.23,0.00020108,2]
[351138797,1738348294036,-150.0,0.00020119,4]
[351138798,1738348294045,-786.06,0.00020133,2]
[351138799,1738348294055,-744.03,0.00020133,2]
[351138800,1738348294065,-1041.45,0.00020133,2]
[351138801,1738348294075,-679.36,0.00020133,2]
[351138802,1738348294084,-639.49,0.00020133,2]
[351138803,1738348294094,-983.34,0.00020133,2]
[351138804,1738348294104,-853.27,0.00020133,2]
[351138805,1738348294114,-2290.49,0.00020133,2]
[351138806,1738348294124,-15748.87,0.00020133,2]
[351138807,1738348294135,-1756.23,0.00020133,2]
[351138808,1738348294145,-5804.66,0.00020133,2]
[351138809,1738348294154,-1011.15,0.00020133,2]
[351138810,1738348294163,-1398.05,0.00020133,2]
[351138811,1738348294173,-706.26,0.00020133,2]
[351138812,1738348294183,-1396.62,0.00020133,2]
[351138813,1738348294193,-1348.69,0.00020133,2]
[351138814,1738348294206,-1491.37,0.00020133,2]
[351138815,1738348294217,-592.09,0.00020134,2]
[351138816,1738348294228,-541.54,0.00020134,2]
[351138817,1738348294239,-661.57,0.00020134,2]
[351138818,1738348294250,-568.28,0.00020134,2]
[351138819,1738348294261,-517.91,0.00020134,2]
[351138820,1738348294271,-573.54,0.00020134,2]
[351138821,1738348294281,-730.37,0.00020134,2]
[351138822,1738348294291,-536.25,0.00020134,2]
[351138823,1738348294302,-978.34,0.00020134,2]
[351138824,1738348294311,-520.12943765,0.00020134,2]
[351138825,1738348294321,-932.35,0.00020134,2]
[351138826,1738348294330,-1577.73,0.00020134,2]
[351138827,1738348294340,-647.42,0.00020134,2]
[351138828,1738348294350,-286.106421,0.00020134,2]
[351138829,1738348294360,-551.45,0.00020134,2]
[351138830,1738348294370,-2652.69006965,0.00020134,2]
[351138831,1738348294380,-616.52,0.00020134,2]
[351138832,1738348294390,-611.99,0.00020134,2]
[351138833,1738348294399,-1917.23,0.00020134,2]
[351138834,1738348294409,-1010.98,0.00020134,2]
[351138835,1738348294420,-345.181563,0.00020134,2]
[351138836,1738348294430,-1746.30471599,0.00020134,2]
[351138837,1738348294440,-1127.11,0.00020134,2]
[351138838,1738348294453,-957.27,0.00020134,2]
[351138839,1738348294463,-683.39,0.00020134,2]
[351138840,1738348294473,-834.53,0.00020134,2]
[351138841,1738348294482,-3304.95,0.00020134,2]
[351138842,1738348294492,-1375.96,0.00020134,2]
[351138843,1738348294503,-1152.1,0.00020134,2]
[351138844,1738348294519,-637.73,0.00020134,2]
[351138845,1738348294529,-861.45,0.00020134,2]
[351138846,1738348294539,-1174.79,0.00020134,2]
[351138847,1738348294549,-5050.15,0.00020134,2]
[351138848,1738348294559,-1552.68,0.00020134,2]
[351138849,1738348294569,-1714.15,0.00020134,2]
[351138850,1738348294578,-970.54,0.00020134,2]
[351138851,1738348294589,-974.2,0.00020134,2]
[351138852,1738348294599,-2977.2,0.00020134,2]
[351138853,1738348294609,-2472.78,0.00020134,2]
[351138854,1738348294619,-2130.65,0.00020134,2]
[351138855,1738348294629,-2310.79,0.00020134,2]
[351138856,1738348294638,-3082.33,0.00020134,2]
[351138857,1738348294648,-1236.46,0.00020134,2]
[351138858,1738348294658,-1531.95,0.00020134,2]
[351138859,1738348294668,-1897.38,0.00020134,2]
[351138860,1738348294678,-4150.61,0.00020134,2]
[351138861,1738348294688,-4363.87,0.00020134,2]
[351138862,1738348294701,-541.92386668,0.00020134,2]
[351138863,1738348294711,-977.31,0.00020134,2]
[351138864,1738348294720,-755.3,0.00020134,2]
[351138865,1738348294730,-1593.71,0.00020134,2]
[351138866,1738348294740,-772.66,0.00020135,2]
[351138867,1738348294750,-606.93451882,0.00020135,2]
[351138868,1738348294760,-522.95914577,0.00020135,2]
[351138869,1738348294770,-691.76,0.00020135,2]
[351138870,1738348294780,-694.2751559,0.00020135,2]
[351138871,1738348294789,-169.62332668,0.00020135,2]
[351138872,1738348294799,-500.0,0.00020135,2]
[351138873,1738348294809,-622.01,0.00020135,2]
[351138874,1738348294819,-500.0,0.00020135,2]
[351138875,1738348294829,-799.89,0.00020135,2]